bitfinex/quotes_ETHUSD_20220220
["timestamp","ask_amount","ask_price","bid_price","bid_amount"]
[1645315692133,0.90619,2762.2,2761.6,1.5386358]
[1645315692330,0.90619,2762.2,2761.0,4.65234505]
[1645315692331,0.822,2762.1,2761.5,0.01209428]
[1645315692540,0.97518813,2762.0,2761.6,1.53876118]
[1645315692833,0.522,2761.9,2761.5,0.01209428]
[1645315693330,1.522,2761.9,2761.1,1.1716]
[1645315693531,1.822,2761.9,2761.6,0.00302321]
[1645315693734,3.5,2761.8,2761.6,0.00302321]
[1645315693980,1.522,2761.7,2761.6,0.00302321]
[1645315694183,2.122,2761.7,2761.6,0.00302321]
[1645315694581,2.122,2761.7,2761.2,1.53879321]
[1645315694782,0.9062,2761.6,2761.5,0.00302324]
[1645315694981,1.4282,2761.6,2761.5,0.00302324]
[1645315695779,0.86320535,2761.5,2761.2,1.53879321]
[1645315695981,1.38520535,2761.5,2761.4,0.0030233]
[1645315696984,1.38520535,2761.5,2761.1,1.53886096]
[1645315697183,1.38520535,2761.5,2761.3,0.00302336]
[1645315698036,1.38520535,2761.5,2761.1,1.53886096]
[1645315698632,1.38520535,2761.5,2761.3,0.0030234]
[1645315699235,1.38520535,2761.5,2761.1,1.53886096]
[1645315699635,1.93847735,2761.5,2761.3,0.0030234]
[1645315700240,2.53847735,2761.5,2761.3,0.0030234]
[1645315700446,2.53847735,2761.5,2760.5,2.3115]
[1645315700640,1.0,2761.4,2760.7,1.53903519]
[1645315700938,1.0,2761.4,2761.3,0.0030234]
[1645315701138,1.522,2761.4,2761.3,0.0030234]
[1645315701389,3.3347,2761.4,2761.3,0.0030234]
[1645315701784,3.3347,2761.4,2760.3,8.4583]
[1645315701986,3.3347,2761.4,2761.2,0.00302344]
[1645315702989,3.3347,2761.4,2760.3,8.4583]
[1645315703185,3.3347,2761.4,2761.2,0.00302347]
[1645315703987,3.5,2761.3,2761.2,0.00302347]
[1645315704188,3.5,2761.3,2760.3,4.9583]
[1645315704189,0.90639,2761.1,2760.3,4.9583]
[1645315704387,0.522,2761.0,2760.7,0.01209568]
[1645315705237,0.87330213,2760.9,2760.0,2.377]
[1645315705432,0.91084654,2760.4,2760.1,1.53910657]
[1645315705635,1.11000604,2760.8,2760.5,0.73088671]
[1645315706030,1.11000604,2760.8,2760.6,0.04035807]
[1645315706732,1.11000604,2760.8,2760.6,0.04338191]
[1645315707634,1.11000604,2760.8,2760.6,0.04035807]
[1645315708036,1.11000604,2760.8,2760.6,0.04338191]
[1645315708982,1.11000604,2760.8,2760.6,0.04035807]
[1645315709181,1.11000604,2760.8,2760.6,0.04338192]
[1645315710182,1.11000604,2760.8,2760.6,0.04035807]
[1645315710396,1.63200604,2760.8,2760.6,0.04338192]
[1645315711381,1.63200604,2760.8,2760.6,0.04035807]
[1645315711584,1.63200604,2760.8,2760.6,0.04338192]
[1645315711782,2.16453401,2760.8,2760.6,0.04338192]
[1645315712633,2.16453401,2760.8,2760.6,0.04035807]
[1645315712832,2.16453401,2760.8,2760.6,0.04338192]
[1645315713633,2.16453401,2760.8,2760.6,0.04035807]
[1645315713834,2.16453401,2760.8,2760.6,0.04338192]
[1645315714935,2.16453401,2760.8,2760.6,0.04035807]
[1645315715136,2.16453401,2760.8,2760.5,0.72426863]
[1645315719889,0.90644,2760.7,2760.5,0.72749426]
[1645315720140,1.42844,2760.7,2760.5,0.72749426]
[1645315720843,1.42844,2760.7,2760.5,0.72426863]
[1645315721242,1.42844,2760.7,2760.5,0.72749423]
[1645315722042,1.42844,2760.7,2760.5,0.72426863]
[1645315722243,1.42844,2760.7,2760.5,0.72749423]
[1645315722445,2.42844,2760.7,2760.5,0.72749423]
[1645315723246,2.42844,2760.7,2760.5,0.72426863]
[1645315723750,2.42844,2760.7,2760.5,0.72749423]
[1645315724585,2.42844,2760.7,2760.5,0.72426863]
[1645315724882,2.42844,2760.7,2760.5,0.72749423]
[1645315725684,2.42844,2760.7,2760.5,0.72426863]
[1645315725985,2.42844,2760.7,2760.5,0.67749423]
[1645315726387,2.42844,2760.7,2760.5,0.66811854]
[1645315726984,2.42844,2760.7,2760.5,0.66489294]
[1645315727284,2.42844,2760.7,2760.5,0.66811854]
[1645315728138,2.42844,2760.7,2760.5,0.66489294]
[1645315728338,2.42844,2760.7,2760.5,0.66811854]
[1645315729341,2.42844,2760.7,2760.5,0.66489294]
[1645315729640,2.42844,2760.7,2760.5,0.66811854]
[1645315730045,2.42844,2760.7,2760.2,0.00406364]
[1645315730046,7.6175364,2760.6,2760.2,0.00406364]
[1645315730242,0.522,2760.5,2760.0,0.01696798]
[1645315730443,1.7027,2760.5,2760.0,0.01290434]
[1645315730644,0.90685,2760.3,2759.7,0.00406364]
[1645315730846,0.90684,2760.1,2759.7,0.00406364]
[1645315731046,1.40966458,2760.0,2759.7,0.00406364]
[1645315731246,2.00966458,2760.0,2759.7,0.00406364]
[1645315731493,3.00966458,2760.0,2759.7,0.00406364]
[1645315731691,3.00966458,2760.0,2759.2,1.54375102]
[1645315731692,3.91651458,2760.0,2759.2,1.54375102]
[1645315731885,3.00966458,2760.0,2759.2,1.53968738]
[1645315732085,3.00966458,2760.0,2759.7,0.00311959]
[1645315732485,1.81378,2759.8,2759.7,0.00311959]
[1645315732687,3.24273,2759.8,2759.7,0.00311959]
[1645315732886,3.84273,2759.8,2759.1,0.00406364]
[1645315733086,0.90688,2759.6,2759.2,0.01248046]
[1645315733285,0.522,2759.5,2759.2,0.01248046]
[1645315733687,1.81393,2759.4,2759.2,0.01248046]
[1645315733886,0.522,2759.4,2759.2,0.01248046]
[1645315734089,1.0,2759.7,2758.9,0.00406364]
[1645315734090,1.0,2759.7,2759.4,1.044]
[1645315734289,0.90696,2759.5,2759.4,1.044]
[1645315734491,2.43805513,2759.5,2759.4,1.044]
[1645315735832,2.73805513,2759.5,2759.4,1.044]
[1645315736232,3.73805513,2759.5,2759.4,1.044]
[1645315737430,3.43805513,2759.5,2759.4,1.044]
[1645315737629,2.43805513,2759.5,2759.4,1.044]
[1645315738433,6.53805513,2759.5,2759.4,1.044]
[1645315738635,6.53805513,2759.5,2759.3,0.00301339]
[1645315738902,3.0,2759.3,2758.6,0.00406364]
[1645315739089,4.92909,2759.2,2758.6,0.00406364]
[1645315739292,5.92909,2759.2,2758.8,0.01207438]
[1645315740089,5.92909,2759.2,2758.7,0.00406364]
[1645315740789,6.8362127,2759.2,2758.7,0.00406364]
[1645315740989,0.94358238,2758.8,2758.7,0.00406364]
[1645315741193,1.46558238,2758.8,2758.6,1.54001202]
[1645315741391,1.46558238,2758.8,2758.7,1.54001202]
[1645315741788,1.46558238,2758.8,2758.3,0.00406364]
[1645315741993,1.46558238,2758.8,2758.3,1.5441175]
[1645315742634,1.46558238,2758.8,2758.4,1.54005386]
[1645315742835,1.46558238,2758.8,2758.5,1.54005386]
[1645315743035,1.46558238,2758.8,2758.5,0.00406364]
[1645315743235,0.90711,2758.7,2758.5,1.54006001]
[1645315743434,0.90711,2758.7,2758.4,0.00322686]
[1645315743435,0.90711,2758.7,2758.6,1.54006001]
[1645315743635,1.46558238,2758.8,2758.6,1.54006001]
[1645315743835,1.46558238,2758.8,2758.3,1.54006001]
[1645315744038,1.46558238,2758.8,2758.5,0.0032268]
[1645315744236,1.46558238,2758.8,2758.5,1.54328681]
[1645315744436,1.46558238,2758.8,2758.5,0.0032268]
[1645315744838,1.41558238,2758.8,2758.5,1.44328681]
[1645315745038,1.41558238,2758.8,2758.2,0.00406364]
[1645315745238,1.41558238,2758.8,2758.5,0.0032268]
[1645315746240,1.41558238,2758.8,2758.2,0.00406364]
[1645315747686,1.41558238,2758.8,2758.4,0.00322689]
[1645315748386,0.72737052,2759.4,2758.4,0.00322689]
[1645315748588,0.54667052,2759.4,2758.4,18.36]
[1645315748789,0.54667052,2759.4,2758.5,0.00406364]
[1645315749790,1.60398013,2759.4,2758.7,0.86312733]
[1645315749990,1.60398013,2759.4,2758.8,0.00406364]
[1645315752933,1.60398013,2759.4,2758.6,0.00406364]
[1645315753334,0.54667052,2759.4,2758.6,3.32118746]
[1645315753538,1.2095,2760.3,2758.6,3.32118746]
[1645315753539,0.522,2759.9,2758.7,0.00406364]
[1645315753736,0.522,2759.9,2758.7,3.01936364]
[1645315753985,0.522,2759.9,2758.8,3.32813971]
[1645315754383,0.522,2759.9,2758.8,1.23966364]
[1645315754586,1.67754727,2759.9,2759.3,1.10019111]
[1645315754784,1.67754727,2759.9,2759.4,0.00406364]
[1645315755291,0.7027,2760.3,2759.1,18.31406364]
[1645315755486,0.7027,2760.3,2759.2,7.32]
[1645315756086,0.522,2760.3,2759.2,7.32]
[1645315756688,1.17085495,2760.0,2759.2,7.32]
[1645315757287,0.522,2760.3,2759.2,7.32]
[1645315758236,0.522,2760.3,2759.5,1.10670823]
[1645315758437,0.522,2760.3,2759.6,14.3745392]
[1645315758634,0.472,2760.3,2759.6,14.3745392]
[1645315758836,0.00322526,2760.4,2759.6,14.3745392]
[1645315759035,0.00322526,2760.4,2759.7,1.166]
[1645315759433,0.522,2760.9,2759.7,1.166]
[1645315759634,0.00322543,2760.4,2760.0,0.94898511]
[1645315759834,0.00322543,2760.4,2759.7,1.166]
[1645315760641,0.522,2760.5,2759.7,1.166]
[1645315760837,0.00322543,2760.4,2759.7,1.166]
[1645315761037,0.92211445,2760.1,2759.7,1.166]
[1645315761237,0.92211445,2760.1,2759.4,3.29408531]
[1645315761487,0.92211445,2760.1,2759.4,0.87498531]
[1645315763692,0.92211445,2760.1,2759.3,11.04]
[1645315763888,0.92211445,2760.1,2759.2,8.5013]
[1645315764089,0.92211445,2760.1,2759.2,11.83339263]
[1645315764691,0.92211445,2760.1,2759.3,1.0314874]
[1645315764890,0.92211445,2760.1,2759.4,1.53959778]
[1645315765733,0.92211445,2760.1,2759.4,12.57959778]
[1645315765939,0.00322526,2760.4,2759.5,12.57959778]
[1645315766237,0.00322526,2760.4,2759.7,11.04]
[1645315766435,0.00322526,2760.4,2759.9,11.04]
[1645315766635,1.2147,2760.8,2760.0,1.53959778]
[1645315766836,1.2147,2760.8,2759.7,11.04]
[1645315766837,0.00322543,2760.4,2760.1,1.53959778]
[1645315767136,0.95902826,2760.6,2760.0,1.53959778]
[1645315768880,0.95902826,2760.6,2759.9,11.97401326]
[1645315769281,0.95902826,2760.6,2760.0,1.53432346]
[1645315769480,0.94737826,2760.6,2760.0,1.50868346]
[1645315770483,0.00322633,2760.5,2760.0,1.50868346]
[1645315771086,0.00322633,2760.5,2759.9,11.04]
[1645315771382,0.94737826,2760.6,2759.9,10.94782]
[1645315771583,0.00322628,2760.5,2759.9,10.94782]
[1645315772629,0.94737826,2760.6,2759.9,10.94782]
[1645315772831,0.00322628,2760.5,2759.9,10.94782]
[1645315773030,0.00322628,2760.5,2759.9,10.87944]
[1645315773835,0.94737826,2760.6,2759.9,10.87944]
[1645315774033,0.00322628,2760.5,2759.9,10.87944]
[1645315775033,0.94737826,2760.6,2759.9,10.87944]
[1645315775241,0.00322628,2760.5,2759.9,10.87944]
[1645315776240,0.94737826,2760.6,2759.9,10.87944]
[1645315776489,0.00322628,2760.5,2759.9,10.87944]
[1645315778591,0.94737826,2760.6,2759.8,12.2611]
[1645315778796,0.00322628,2760.5,2759.8,12.2611]
[1645315779794,0.94737826,2760.6,2759.8,12.2611]
[1645315779992,0.00322625,2760.5,2759.8,12.2611]
[1645315781039,0.94737826,2760.6,2759.8,12.2611]
[1645315781240,0.00322625,2760.5,2759.8,12.2611]
[1645315782239,0.94737826,2760.6,2759.8,12.2611]
[1645315782441,0.00322625,2760.5,2759.8,12.2611]
[1645315783441,0.94737826,2760.6,2759.8,12.2611]
[1645315783641,0.00322625,2760.5,2759.8,12.2611]
[1645315784689,0.94737826,2760.6,2759.8,12.2611]
[1645315784891,0.94737826,2760.6,2759.9,11.04]
[1645315784892,0.00322625,2760.5,2759.9,11.04]
[1645315785089,0.00322625,2760.5,2760.1,1.14118419]
[1645315785888,0.94737826,2760.6,2760.1,1.14118419]
[1645315786089,0.00322633,2760.5,2760.1,1.14118419]
[1645315786989,1.1807,2761.0,2760.1,1.14118419]
[1645315787192,0.00322633,2760.5,2760.1,1.14118419]
[1645315787633,0.00322633,2760.5,2760.1,0.98948419]
[1645315788133,1.00463506,2760.8,2760.1,0.98948419]
[1645315788537,0.00322633,2760.5,2759.9,10.67874]
[1645315788735,0.00322633,2760.5,2759.9,11.04]
[1645315789336,1.00463506,2760.8,2759.9,10.67874]
[1645315789535,1.00463506,2760.8,2760.0,11.70826146]
[1645315789736,0.00322628,2760.5,2760.0,11.34700146]
[1645315790536,1.00463506,2760.8,2760.0,11.34700146]
[1645315790937,0.0032263,2760.5,2760.0,11.34700146]
[1645315791138,0.0032263,2760.5,2760.1,1.53944527]
[1645315791791,1.00463506,2760.8,2760.1,5.03944527]
[1645315791988,0.00322633,2760.5,2760.2,1.53944527]
[1645315793089,1.00463506,2760.8,2760.2,1.53944527]
[1645315793289,0.00322636,2760.5,2760.2,1.53944527]
[1645315793493,0.00322636,2760.5,2760.3,3.5]
[1645315793696,1.9748,2761.7,2760.6,0.00645271]
[1645315793697,9.0756,2761.7,2760.6,0.00645271]
[1645315793892,5.5789,2761.7,2760.7,12.21818527]
[1645315794094,0.1809,2762.1,2760.9,10.67874]
[1645315794299,3.2739,2762.2,2761.1,10.67874]
[1645315794492,1.16733479,2762.0,2761.4,1.14594883]
[1645315795334,1.16733479,2762.0,2761.0,3.5]
[1645315795534,1.16733479,2762.0,2761.1,1.53897593]
[1645315795931,1.16733479,2762.0,2761.2,3.5]
[1645315796334,1.16733479,2762.0,2761.3,1.53892858]
[1645315796534,1.16733479,2762.0,2761.1,1.53892858]
[1645315796735,1.16733479,2762.0,2761.2,3.5]
[1645315796937,0.00322562,2761.8,2761.2,3.5]
[1645315797534,0.00322562,2761.8,2761.0,3.5]
[1645315797737,0.00322562,2761.8,2761.1,1.53895384]
[1645315797934,1.16733479,2762.0,2761.2,3.5]
[1645315798136,0.00322577,2761.5,2761.2,3.5]
[1645315798333,0.00322577,2761.5,2761.0,3.5]
[1645315798534,0.00322577,2761.5,2761.1,1.53894294]
[1645315798734,0.00322577,2761.5,2761.2,3.5]
[1645315798990,1.09830054,2761.5,2761.2,3.5]
[1645315799187,1.09830054,2761.5,2761.0,3.5]
[1645315799188,1.10152634,2761.5,2761.0,3.5]
[1645315799389,1.10152634,2761.5,2761.1,1.53900471]
[1645315800187,1.09830054,2761.5,2761.1,1.53900471]
[1645315800389,1.09830054,2761.5,2761.0,1.53900471]
[1645315800588,0.00322583,2761.4,2761.1,1.53902322]
[1645315801391,1.09830054,2761.5,2761.0,3.5]
[1645315801591,1.09830054,2761.5,2760.9,1.2094]
[1645315801791,0.00322586,2761.4,2761.0,1.53902905]
[1645315802092,0.00322586,2761.4,2760.8,3.5]
[1645315802296,0.00322586,2761.4,2760.9,1.53902943]
[1645315802744,1.09830054,2761.5,2761.0,3.5]
[1645315802944,0.00322593,2761.3,2761.0,3.5]
[1645315803843,1.09830054,2761.5,2761.0,3.5]
[1645315804043,1.09830054,2761.5,2760.8,0.90552229]
[1645315804044,0.00322593,2761.3,2760.8,4.40552229]
[1645315805044,0.90612,2761.7,2760.8,4.40552229]
[1645315805245,0.00322599,2761.2,2760.8,4.40552229]
[1645315806143,0.95372779,2761.6,2760.8,4.40552229]
[1645315806587,0.00322602,2761.1,2760.8,4.40552229]
[1645315807488,0.95372779,2761.6,2760.8,4.40552229]
[1645315807689,0.00322605,2761.1,2760.8,4.40552229]
[1645315808688,0.95372779,2761.6,2760.8,4.40552229]
[1645315808897,0.00322605,2761.1,2760.8,4.40552229]
[1645315809089,0.00322605,2761.1,2760.7,4.076]
[1645315809491,0.00322605,2761.1,2760.8,3.5]
[1645315809695,0.00322605,2761.1,2760.7,1.1315]
[1645315809892,0.95372779,2761.6,2760.7,1.1315]
[1645315810136,0.00322605,2761.1,2760.7,16.56285043]
[1645315811037,0.1797,2761.8,2760.7,16.56285043]
[1645315811246,0.1797,2761.8,2760.8,11.04]
[1645315811437,0.00322608,2761.0,2760.9,15.44583]
[1645315812247,1.3651,2762.2,2760.9,22.951682]
[1645315812248,0.1794,2762.2,2760.9,22.951682]
[1645315812444,2.3094,2762.3,2761.4,11.04]
[1645315812640,4.2295,2762.7,2761.7,11.04]
[1645315812840,1.2081,2762.7,2761.9,11.04]
[1645315813040,3.6789,2763.0,2761.9,11.04]
[1645315813242,1.16620678,2762.9,2762.2,1.1343921]
[1645315813439,1.16620678,2762.9,2762.0,14.1769]
[1645315813440,0.1807,2762.8,2762.0,3.1369]
[1645315813638,3.6807,2762.8,2762.0,3.1369]
[1645315813885,0.1807,2762.8,2762.0,3.1369]
[1645315814289,1.16620678,2762.9,2762.0,3.1369]
[1645315814687,1.16620678,2762.9,2761.7,2.26691469]
[1645315814688,0.99797072,2762.4,2761.7,2.26691469]
[1645315814895,0.99797072,2762.4,2761.7,1.05081469]
[1645315815088,0.99797072,2762.4,2761.5,5.0289]
[1645315815489,0.99797072,2762.4,2761.3,1.3146]
[1645315815689,0.99797072,2762.4,2761.3,1.1337]
[1645315816094,0.84064627,2761.7,2761.3,1.1337]
[1645315816393,0.84064627,2761.7,2761.2,1.1793]
[1645315816394,0.84064627,2761.7,2760.9,5.2144]
[1645315816589,0.84064627,2761.7,2760.9,1.0868]
[1645315816989,0.84064627,2761.7,2760.9,0.1809]
[1645315817394,6.7523,2762.2,2760.6,3.09295271]
[1645315817395,0.00322583,2761.4,2760.6,3.09295271]
[1645315817637,0.00322583,2761.4,2760.6,3.69295271]
[1645315818136,0.00322583,2761.4,2760.6,14.73295271]
[1645315818337,3.5,2761.9,2760.6,14.73295271]
[1645315818537,0.00322602,2761.1,2760.6,14.73295271]
[1645315818737,3.5,2761.9,2761.2,0.00645204]
[1645315818937,0.90606,2761.8,2761.2,0.00645204]
[1645315819336,3.5,2761.9,2761.2,0.00645204]
[1645315820039,1.12996378,2761.6,2761.2,0.00645204]
[1645315820838,0.00322577,2761.5,2761.2,0.00645204]
[1645315821893,1.12996378,2761.6,2761.2,0.00645204]
[1645315822091,0.0032258,2761.5,2761.2,0.00645204]
[1645315823091,0.1804,2761.9,2761.2,0.00645204]
[1645315823292,0.1804,2761.9,2761.3,12.57879089]
[1645315823293,0.0032258,2761.5,2761.3,12.57879089]
[1645315823495,0.0032258,2761.5,2761.4,1.53874991]
[1645315823891,0.0032258,2761.5,2761.3,1.53874991]
[1645315824091,0.0032258,2761.5,2761.2,0.00645204]
[1645315824092,0.0032258,2761.5,2761.4,12.57874991]
[1645315824290,0.90593,2762.3,2761.4,12.57874991]
[1645315824491,0.00322577,2761.5,2761.4,11.04]
[1645315824689,0.00322577,2761.5,2761.4,13.64162187]
[1645315825145,0.00322577,2761.5,2761.4,2.60162187]
[1645315825346,4.022,2762.6,2761.4,2.60162187]
[1645315825542,0.1809,2762.5,2761.5,1.5387377]
[1645315825839,0.00152365,2761.6,2761.5,1.5387377]
[1645315826139,0.00152365,2761.6,2761.4,1.06288417]
[1645315826740,1.83450282,2762.4,2761.4,1.06288417]
[1645315826940,1.83450282,2762.4,2761.5,1.53864682]
[1645315826941,0.00152365,2761.6,2761.5,1.53864682]
[1645315827341,0.00152365,2761.6,2761.5,12.57864682]
[1645315827740,0.00152365,2761.6,2761.5,1.53864682]
[1645315827944,0.1809,2762.5,2761.5,1.53864682]
[1645315828142,0.00152365,2761.7,2761.5,1.53864682]
[1645315828988,2.0197841,2762.4,2761.5,1.53864682]
[1645315829489,2.0197841,2762.4,2761.4,1.06288417]
[1645315829490,0.00322312,2761.7,2761.4,1.06288417]
[1645315830289,0.85081564,2761.9,2761.4,1.06288417]
[1645315830492,0.00322315,2761.7,2761.4,1.06288417]
[1645315831588,1.03471006,2761.9,2761.4,1.06288417]
[1645315831791,0.00322315,2761.7,2761.4,1.06288417]
[1645315831989,0.00322315,2761.7,2761.2,0.00645204]
[1645315832735,4.40607,2761.8,2761.2,0.00645204]
[1645315832935,0.00322322,2761.6,2761.2,0.00645204]
[1645315833934,0.1804,2761.7,2761.2,0.00645204]
[1645315834136,0.00322325,2761.5,2761.2,0.00645204]
[1645315835138,1.90599,2762.1,2761.2,0.00645204]
[1645315835139,1.522,2762.1,2761.3,1.5388771]
[1645315835337,0.522,2762.1,2761.3,1.5388771]
[1645315836236,0.522,2762.1,2761.6,1.17525656]
[1645315836485,0.00322562,2761.8,2761.6,1.17525656]
[1645315836687,0.00322562,2761.8,2761.2,0.00645204]
[1645315836885,0.00322562,2761.8,2761.3,1.53876218]
[1645315837485,0.522,2762.1,2761.3,1.53876218]
[1645315837685,0.522,2762.1,2761.6,0.93845532]
[1645315837686,0.00322571,2761.7,2761.6,0.93845532]
[1645315838187,0.00322571,2761.7,2761.6,2.47720815]
[1645315838389,0.00322571,2761.7,2761.6,2.47719526]
[1645315838786,0.1807,2762.4,2761.6,2.47719526]
[1645315838988,0.00322565,2761.8,2761.7,1.53873994]
[1645315839388,0.00322565,2761.8,2761.3,3.1381]
[1645315839589,0.00322565,2761.8,2761.4,1.53876607]
[1645315839987,0.1807,2762.4,2761.4,1.53876607]
[1645315840241,0.00322568,2761.7,2761.6,0.9121428]
[1645315840641,0.00322568,2761.7,2761.6,2.45090887]
[1645315841040,0.89200746,2762.3,2761.6,2.45090887]
[1645315841238,0.00322565,2761.8,2761.7,1.53876607]
[1645315842337,0.89200746,2762.3,2761.7,1.53876607]
[1645315842538,0.00322559,2761.9,2761.7,1.53876607]
[1645315843238,0.00322559,2761.9,2761.3,3.1381]
[1645315843439,0.89200746,2762.3,2761.4,1.53875896]
[1645315843642,0.00322556,2761.9,2761.4,1.53790345]
[1645315844085,0.00322556,2761.9,2761.5,0.90835502]
[1645315844285,0.00322556,2761.9,2761.3,3.1381]
[1645315844688,1.42795,2762.2,2761.3,3.1381]
[1645315844888,0.00322568,2761.7,2761.3,3.1381]
[1645315845692,0.00322568,2761.7,2761.2,0.00645204]
[1645315845892,0.9251193,2761.8,2761.2,0.00645204]
[1645315846090,0.522,2761.7,2761.2,0.00645204]
[1645315846293,0.00322574,2761.6,2761.2,0.00645204]
[1645315846487,0.522,2761.5,2761.2,0.00645204]
[1645315847088,1.4282,2761.5,2761.2,0.00645204]
[1645315847486,2.43142584,2761.5,2761.2,0.00645204]
[1645315847743,1.43142584,2761.5,2761.2,0.00645204]
[1645315847944,0.9867654,2761.3,2761.2,0.00645204]
[1645315853991,0.00322479,2761.4,2761.2,0.00645204]
[1645315854395,7.1255,2761.7,2761.2,0.00645204]
[1645315854591,0.00322476,2761.4,2761.2,0.00645204]
[1645315854993,0.94939851,2761.4,2761.2,0.00645204]
[1645315855438,0.94617375,2761.4,2761.2,0.00645204]
[1645315855841,0.94939851,2761.4,2761.2,0.00645204]
[1645315856642,0.94617375,2761.4,2761.2,0.00645204]
[1645315857039,0.94939851,2761.4,2761.2,0.00645204]
[1645315857941,0.94617375,2761.4,2761.2,0.00645204]
[1645315858140,0.94939851,2761.4,2761.2,0.00645204]
[1645315859196,0.94617375,2761.4,2761.2,0.00645204]
[1645315859402,0.94939851,2761.4,2761.2,0.00645204]
[1645315860299,0.94617375,2761.4,2761.2,0.00645204]
[1645315860700,0.94939851,2761.4,2761.2,0.00645204]
[1645315861503,4.022,2761.3,2761.2,0.00645204]
[1645315861905,5.022,2761.3,2761.2,0.00645204]
[1645315862302,5.322,2761.3,2761.2,0.00645204]
[1645315863551,5.5027,2761.3,2761.2,0.00645204]
[1645315864152,5.5027,2761.3,2761.2,0.0054439]
[1645315864353,5.3815,2761.3,2761.2,0.0054439]
[1645315864559,5.2008,2761.3,2761.2,0.0054439]
[1645315865557,5.73963204,2761.3,2761.2,0.0054439]
[1645315867496,2.23963204,2761.3,2761.2,0.0054439]
[1645315867899,1.23963204,2761.3,2761.2,0.0054439]
[1645315868100,2.23963204,2761.3,2761.2,0.0054439]
[1645315868498,1.7008,2761.3,2761.2,0.0054439]
[1645315868697,0.7008,2761.3,2761.2,0.0054439]
[1645315868898,1.7008,2761.3,2761.2,0.0054439]
[1645315869098,0.7008,2761.3,2761.2,0.0054439]
[1645315869299,1.7008,2761.3,2761.2,0.0054439]
[1645315869606,0.522,2761.3,2761.2,0.0054439]
[1645315870160,0.00322479,2761.4,2761.2,1.54438709]
[1645315870360,0.00322479,2761.4,2761.3,1.53894319]
[1645315870960,0.022,2762.3,2761.4,3.00644957]
[1645315871162,1.09032664,2762.0,2761.5,1.53894319]
[1645315871560,1.09032664,2762.0,2761.4,3.96676212]
[1645315871759,0.022,2762.3,2761.5,1.53880501]
[1645315872961,0.90597,2762.1,2761.5,1.53880501]
[1645315873891,0.00152621,2761.9,2761.5,1.53880501]
[1645315874695,0.40597,2762.1,2761.5,1.53880501]
[1645315875093,0.00322452,2761.8,2761.5,1.53880501]
[1645315875491,0.00322452,2761.8,2761.4,0.00644957]
[1645315875896,1.40597,2762.1,2761.4,0.00644957]
[1645315876094,0.40597,2762.1,2761.4,0.00644957]
[1645315876295,0.00299469,2761.7,2761.5,1.53881776]
[1645315877095,1.9059,2762.4,2761.6,3.5]
[1645315877398,0.00299469,2761.7,2761.6,3.5]
[1645315877639,0.00299469,2761.7,2761.6,1.53874614]
[1645315878043,0.00299469,2761.7,2761.5,1.53874614]
[1645315878340,1.153482,2762.3,2761.6,1.53874614]
[1645315878540,1.153482,2762.3,2761.7,0.8782013]
[1645315878742,1.153482,2762.3,2761.4,0.00644957]
[1645315878942,1.153482,2762.3,2761.5,1.53874409]
[1645315879543,1.153482,2762.3,2761.6,3.5]
[1645315879751,0.00299453,2762.0,2761.4,0.00644957]
[1645315879946,0.00299453,2762.0,2761.6,1.11358617]
[1645315880241,0.00299453,2762.0,2761.6,4.61358617]
[1645315880441,0.00299453,2762.0,2761.6,1.11358617]
[1645315880843,1.153482,2762.3,2761.6,1.11358617]
[1645315881044,0.0030101,2761.9,2761.6,1.11358617]
[1645315881901,1.153482,2762.3,2761.6,1.11358617]
[1645315882104,0.00301013,2761.9,2761.6,1.11358617]
[1645315883201,1.153482,2762.3,2761.6,1.11358617]
[1645315883399,0.00301013,2761.9,2761.4,0.00644957]
[1645315883602,0.00301013,2761.9,2761.5,1.53873862]
[1645315884400,0.90598,2762.1,2761.5,1.53873862]
[1645315884600,0.95795583,2761.8,2761.5,1.53873862]
[1645315884805,0.95795583,2761.8,2761.4,0.00644957]
[1645315884806,2.16405583,2761.8,2761.4,0.00644957]
[1645315885013,0.522,2761.7,2761.4,0.00644957]
[1645315885740,2.11245,2761.6,2761.4,0.00644957]
[1645315885939,0.522,2761.5,2761.4,0.00644957]
[1645315886340,1.522,2761.5,2761.4,0.00644957]
[1645315886941,5.92822,2761.5,2761.4,0.00644957]
[1645315887140,6.10892,2761.5,2761.4,0.00644957]
[1645315887339,5.92822,2761.5,2761.4,0.00644957]
[1645315888540,2.42822,2761.5,2761.4,0.00644957]
[1645315888892,5.92822,2761.5,2761.4,0.00644957]
[1645315889092,2.42822,2761.5,2761.4,0.00644957]
[1645315889594,5.92822,2761.5,2761.4,0.00644957]
[1645315895348,10.92822,2761.5,2761.4,4.957e-05]
[1645315895550,10.92822,2761.5,2760.8,0.00301024]
[1645315895551,0.9065503,2761.0,2760.8,0.00301024]
[1645315895742,10.851,2760.9,2760.8,0.00301024]
[1645315895942,12.05762,2760.9,2760.8,0.00301024]
[1645315896144,3.0,2760.8,2760.4,0.01204243]
[1645315896396,0.522,2760.7,2759.4,3.12072586]
[1645315896600,0.522,2760.7,2759.5,1.53958618]
[1645315896601,0.92298499,2760.0,2759.5,1.53958618]
[1645315896800,1.44498499,2760.0,2759.6,0.00404742]
[1645315896993,1.44498499,2760.0,2759.6,1.5436336]
[1645315897195,1.44498499,2760.0,2759.7,1.53958618]
[1645315897395,1.44498499,2760.0,2759.8,1.53958618]
[1645315897698,0.522,2760.0,2759.4,0.00404742]
[1645315897898,0.522,2760.0,2759.4,1.54358985]
[1645315898093,1.2066,2760.2,2760.0,1.044]
[1645315898295,0.522,2760.1,2760.0,1.044]
[1645315898795,1.64604111,2760.1,2760.0,1.044]
[1645315899194,2.64604111,2760.1,2760.0,1.044]
[1645315900746,2.94604111,2760.1,2760.0,1.044]
[1645315901447,2.64604111,2760.1,2760.0,1.044]
[1645315903648,2.94604111,2760.1,2760.0,1.044]
[1645315904098,1.64604111,2760.1,2760.0,1.044]
[1645315913795,0.522,2760.1,2760.0,1.044]
[1645315918250,0.93448823,2760.3,2760.0,1.044]
[1645315919500,0.93448823,2760.3,2760.0,1.04722579]
[1645315920394,0.93448823,2760.3,2760.0,1.044]
[1645315920595,0.93448823,2760.3,2760.0,1.04722579]
[1645315921696,0.93448823,2760.3,2760.0,1.044]
[1645315921897,0.93448823,2760.3,2760.0,1.04722579]
[1645315922742,0.93448823,2760.3,2760.0,1.044]
[1645315923046,0.93448823,2760.3,2760.0,1.0461535]
[1645315924048,0.93448823,2760.3,2760.0,1.04292771]